Cogmind - Beta 16.1 @@@ ROGUE MODE // 2026.02.11 @ 22:29:35 Player: Rudrot Result: Destroyed by KM-MHH(R) with Subdweller Laser Performance ------------- Evolutions (0) 0 Regions Visited (2) 400 Robots Destroyed (50) 250 Value Destroyed (855) 855 Prototype IDs (0) 0 Alien Tech Used (0) 0 Bonus (0) 0 TOTAL SCORE: 1505 Bonus ------- None Cogmind --------- Core Integrity 0/250 Matter 122/300 Energy 200/200 System Corruption 3% Temperature Cool (6) Movement Rolling (120) Ox1 Location -10/Subcaves Parts ------- > --- POWER (1) -------- Subdweller Power Source > --- PROPULSION (2) --- Subdweller Monowheel > --- UTILITY (2) ------ Medium Storage Unit Core Shielding > --- WEAPON (2) ------- Light Cannon Grenade Launcher > --- INVENTORY (10) --- Signal Interpreter Heavy Riot Gun Barrage Gun Grenade Launcher Peak State ------------ > --- POWER ------------ Subdweller Power Source > --- PROPULSION ------- Wheel Wheel > --- UTILITY ---------- Medium Storage Unit Terrain Scanner > --- WEAPON ----------- Heavy Riot Gun Light Cannon > --- INVENTORY -------- Signal Interpreter Core Shielding Light Cannon Grenade Launcher Grenade Launcher Grenade Launcher Grenade Launcher [Rating: 11] Favorites ----------- Power Light Ion Engine Engine Light Ion Engine Propulsion Wheel Wheel Wheel Utility Medium Storage Unit Device Terrain Scanner Storage Medium Storage Unit Processor Machine Analyzer Protection Core Shielding Weapon Light Cannon Energy Gun Heavy Riot Gun Ballistic Gun Assault Rifle Ballistic Cannon Light Cannon Launcher Grenade Launcher Build | -11 -10 -10 ------- Run | Yrd Mat Sub Slots Evolved . | . . . Power . | . . . Propulsion . | . . . Utility . | . . . Weapon . | . . . Parts Attached 34 | 7 16 11 Power 5 | 1 2 2 Engine 5 | 1 2 2 Core . | . . . Reactor . | . . . Propulsion 8 | 2 5 1 Treads . | . . . Leg . | . . . Wheel 8 | 2 5 1 Hover . | . . . Flight . | . . . Utility 7 | 2 3 2 Device 2 | 1 . 1 Storage 3 | 1 2 . Processor 1 | . 1 . Hackware . | . . . Protection 1 | . . 1 Artifact . | . . . Weapon 14 | 2 6 6 Energy Gun 1 | . . 1 Energy Cannon . | . . . Ballistic Gun 2 | 2 . . Ballistic Cannon 4 | . 4 . Launcher 7 | . 2 5 Special Weapon . | . . . Impact Weapon . | . . . Slashing Weapon . | . . . Piercing Weapon . | . . . Special Melee Weapon . | . . . Unidentified Prototypes . | . . . Parts Lost 16 | . 4 12 Power 3 | . 1 2 Propulsion 3 | . 1 2 Utility 3 | . 1 2 Weapon 7 | . 1 6 Highest Loss Streak 4 | . 2 4 To Critical Strikes 1 | . 1 . Average Backups 7 | . 8 8 Power . | . . . Propulsion . | . 1 . Utility 1 | . 1 1 Weapon 5 | . 5 5 Tool/Special . | . . . Unused Backups 5 | . 3 2 Power . | . . . Propulsion 2 | . 2 . Utility 1 | . . 1 Weapon 1 | . . 1 Tool/Special 1 | . 1 . Average Slot Usage (%) 95 | . 93 96 Engine 11 | . 11 12 Wheel 27 | . 27 27 Device 6 | . 3 9 Storage 16 | . 18 14 Processor 2 | . 3 1 Ballistic Gun 3 | . 6 . Ballistic Cannon 16 | . 18 13 Launcher 6 | . 1 12 Peak Build Rating 11 | 7 10 11 Average Rating 8 | 5 7 8 On Entrance 5 | . 7 10 Avg Prop Armor Cover (%) . | . . . Naked Turns . | . . . Heaviest Build 23 | 12 21 23 Greatest Support 30 | 26 26 30 Greatest Overweight (x) 2 | 2 1 2 Average Overweight (x) . | . . . Largest Inventory Capacity 10 | 8 10 10 Average Capacity 9 | 7 9 10 Most Carried 10 | 2 10 10 Average Carried 7 | . 8 8 Final Capacity 10 | 8 10 10 Final Carried 10 | 1 10 4 Class Distribution -------------------- 57% | Mutant 42% | Scavenger-Mutant Dominant Class ---------------- Mutant | -10/Materials Mutant | -10/Subcaves Resources | -11 -10 -10 ----------- Run | Yrd Mat Sub Matter Collected 1521 | 294 832 395 Remotely 202 | 10 192 . Salvage Created 876 | 90 533 253 Parts 74 | 2 51 21 Haulers Intercepted 2 | . 2 . Recyclers Shooed 2 | . 2 . Parts Field Recycled . | . . . Retrieved Matter . | . . . Parts Self-Destructed 9 | . . 9 Prevented . | . . . Parts Restored . | . . . Kills | -11 -10 -10 ------- Run | Yrd Mat Sub Combat Hostiles Destroyed 31 | . 15 16 Guns 8 | . 7 1 Cannons 11 | . 7 4 AOE 12 | . 1 11 Classes Destroyed 11 | 1 8 2 Worker 6 | . 6 . Builder 2 | . 2 . Hauler 2 | . 2 . Recycler 2 | 1 1 . Mechanic 1 | . 1 . Operator 1 | . 1 . Turret 2 | . . 2 Watcher 3 | . 3 . Swarmer 18 | . 11 7 Grunt 4 | . 4 . Subdweller 9 | . . 9 Best Kill Streak 6 | 1 4 6 Combat Bots Only 4 | . 3 4 Max Kills in Single Turn 3 | 1 1 3 Gunslinging . | . . . Exploded 3 | . 1 3 Melee . | . . . Uniques/NPCs Destroyed . | . . . Combat | -11 -10 -10 -------- Run | Yrd Mat Sub Hostile Shots Fired 148 | . 68 80 Missed 41 | . 20 21 Hits 107 | . 48 59 Projectile 107 | . 48 59 Critical Strikes 2 | . 1 1 Actively Blocked 1 | . . 1 Damage Taken 1558 | . 467 1091 Core 254 | . 55 199 Absorbed by Shields . | . . . Redirected to Shielding 15 | . . 15 Core Remaining (%) 100 | 100 . . Volleys Fired 138 | 6 84 48 Largest 2 | 2 2 2 Hottest 90 | 40 60 90 Shots Fired 234 | 12 149 73 Gun 80 | 12 62 6 Cannon 119 | . 80 39 Launcher 35 | . 7 28 Special . | . . . Kinetic 193 | 12 142 39 Thermal . | . . . Explosive 35 | . 7 28 Electromagnetic 6 | . . 6 Robot Hit Streak 14 | 5 7 14 Robot Miss Streak 4 | 1 4 3 Penetration Max . | . . . Secondary Targets 2 | . 2 . Max Gunslinging Chain 1 | . 1 . Shots Hit Robots 117 | 9 72 36 Core Hits 80 | 2 40 38 Critical Kills . | . . . Critical Parts Destroyed . | . . . Critical Strikes 4 | . 4 . Blast 4 | . 4 . Melee Attacks . | . . . Impact . | . . . Slashing . | . . . Piercing . | . . . Sneak Attacks . | . . . Combat Hostiles . | . . . Follow-up Attacks . | . . . Damage Inflicted 3160 | 85 1396 1679 Guns 513 | 85 376 52 Cannons 1001 | . 663 338 Explosions 1646 | . 357 1289 Melee . | . . . Ramming . | . . . Kinetic 1462 | 85 1039 338 Thermal . | . . . Explosive 1646 | . 357 1289 Electromagnetic 52 | . . 52 Impact . | . . . Slashing . | . . . Piercing . | . . . Highest Corruption 3 | . 3 3 Average Corruption 2 | . 2 3 Corruption Purged . | . . . Corruption Blocked . | . . . Effects 28 | . 9 19 Message Errors 8 | . 3 5 Matter Fused 7 | . 2 5 Heat Flow Errors 1 | . 1 . Energy Discharges 2 | . 1 1 Parts Rejected 1 | . . 1 Data Loss (minor) 4 | . 1 3 Misfires 2 | . 1 1 Alerts 2 | . . 2 Weapon Failures 1 | . . 1 Overload Shots . | . . . Overflow Damage 28 | . 6 22 Projectiles 6 | . 6 . Explosions 22 | . . 22 Melee . | . . . Knockbacks 8 | . 6 2 Impact . | . . . Kinetic 8 | . 6 2 Secondary . | . . . Self-Inflicted Damage 54 | . 40 14 Shots 3 | . 1 2 Rammed . | . . . Targets Rammed . | . . . Kicked . | . . . Crushed . | . . . Highest Temperature 187 | . 187 . Average Temperature 55 | . 55 . Received Heat Transfer 213 | . 54 159 Siege Activations . | . . . Martial Activations . | . . . Shielding Activations . | . . . Robots Disrupted . | . . . Combat Hostiles . | . . . Robots Corrupted . | . . . Combat Hostiles . | . . . Parts Fried . | . . . Impact Corruptions . | . . . Robots Melted . | . . . Combat Hostiles . | . . . Parts Melted 1 | . . 1 Heat Transferred . | . . . Parts Sabotaged . | . . . Parts Stolen . | . . . Parts Stripped . | . . . Power Chain Reactions . | . . . Alert | -11 -10 -10 ------- Run | Yrd Mat Sub Maximum Alert Level . | . . . Low Security (%) 100 | 100 100 . Level 1 . | . . . Level 2 . | . . . Level 3 . | . . . Level 4 . | . . . Level 5 . | . . . High Security . | . . . Max Security . | . . . Peak Influence 188 | 5 188 . Initial . | . . . Average 98 | . 105 . Influence Increases 924 | 5 579 340 Destroy 0b10 Robot/C 480 | . 300 180 Destroy 0b10 Robot/NC 85 | 5 80 . Destroy Leader 80 | . 70 10 Disable Machine 15 | . 15 . Destroy Structure 39 | . 39 . Lose Combat Pursuer 225 | . 75 150 Influence Decreases 924 | 5 486 433 Entered New Map 45 | . . 45 Time Decay 779 | 5 446 328 Lost Part 100 | . 40 60 Squads Dispatched 2 | . 2 . Investigation . | . . . Extermination . | . . . Reinforcement 2 | . 2 . Assault . | . . . Garrison . | . . . Intercept . | . . . Searches Triggered . | . . . Construction Impeded . | . . . Haulers Reinforced . | . . . Active Scanning Responses . | . . . Cargo Convoy Interrupts . | . . . Stealth | -11 -10 -10 --------- Run | Yrd Mat Sub Distress Signals . | . . . Communications Jammed . | . . . Distress Signals . | . . . Times Spotted 53 | . 30 23 Peak Tracking Total 6 | . 4 6 Tactical Retreats 7 | . 5 2 Traps | -11 -10 -10 ------- Run | Yrd Mat Sub Traps Triggered 6 | . 6 . Indirectly . | . . . Trap Hack Attempts . | . . . Triggered . | . . . Disarmed . | . . . Reprogrammed . | . . . Reused . | . . . Traps Extracted . | . . . Installed . | . . . Triggered . | . . . Machines | -11 -10 -10 ---------- Run | Yrd Mat Sub Machines Disabled 4 | . 1 3 Max in Single Turn 2 | . 1 2 Machines Repaired . | . . . Machines Dismantled . | . . . Machines Sabotaged . | . . . Overloaded Fab Kills . | . . . Hacking | -11 -10 -10 --------- Run | Yrd Mat Sub Machines Accessed . | . . . Terminals . | . . . Fabricators . | . . . Repair Stations . | . . . Recycling Units . | . . . Scanalyzers . | . . . Garrison Access . | . . . Total Hacks . | . . . Successful . | . . . Failed . | . . . Catastrophic . | . . . Database Lockouts . | . . . Manual . | . . . Terminals . | . . . Fabricators . | . . . Repair Stations . | . . . Recycling Units . | . . . Scanalyzers . | . . . Garrison Access . | . . . Terminal Hacks . | . . . Fabricator Hacks . | . . . Repair Station Hacks . | . . . Recycling Unit Hacks . | . . . Scanalyzer . | . . . Garrison Access Hacks . | . . . Unauthorized Hacks . | . . . Terminals . | . . . Fabricators . | . . . Repair Stations . | . . . Recycling Units . | . . . Scanalyzers . | . . . Garrison Access . | . . . Data Cores Recovered . | . . . Used . | . . . Hacking Detections . | . . . Full Trace Events . | . . . Feedback Events . | . . . Feedback Blocked . | . . . Robot Schematics Acquired . | . . . Robots Built . | . . . Authchips . | . . . Time . | . . . Total Robot Build Rating . | . . . Part Schematics Acquired . | . . . Parts Built . | . . . Authchips . | . . . Time . | . . . Total Part Build Rating . | . . . Part Studies Acquired . | . . . Parts Repaired . | . . . Time . | . . . Parts Recycled . | . . . Recycled Matter . | . . . Retrieved Matter . | . . . Retrieved Components . | . . . Parts Scanalyzed . | . . . Part Schematics Acquired . | . . . Parts Damaged . | . . . Bothacking | -11 -10 -10 ------------ Run | Yrd Mat Sub Used RIF Installer . | . . . Robots Hacked . | . . . Non-combat . | . . . Combat . | . . . Robot Hacks Applied . | . . . Relay Couplers Released . | . . . Fabnet Peak Effective % . | . . . Robots Rewired . | . . . Allies Hacked . | . . . Hacks Repelled . | . . . Allies | -11 -10 -10 -------- Run | Yrd Mat Sub Total Allies . | . . . Largest Group . | . . . Highest-Rated Group . | . . . Highest-Rated Ally . | . . . Total Orders . | . . . Ally Attacks . | . . . Total Damage . | . . . Kills . | . . . Allies Corrupted . | . . . Allies Melted . | . . . Intel | -11 -10 -10 ------- Run | Yrd Mat Sub Active Infowar (turns) 1192 | . 363 829 Terrain 720 | . . 720 Machine Analysis 472 | . 363 109 Robot Analysis Total . | . . . Derelict Logs Recovered 1 | . . 1 Drone Launches . | . . . Drone Recoveries . | . . . Exploration | -11 -10 -10 ------------- Run | Yrd Mat Sub Turns Passed 2360 | 95 1268 997 Spaces Moved 2205 | 72 1163 970 Core 6 | 6 . . Treads . | . . . Legs . | . . . Wheels 2199 | 66 1163 970 Hover . | . . . Flight . | . . . Fastest Speed 50 | 50 80 80 Average Speed 84 | 92 81 87 Slowest Speed 150 | 150 95 120 Overloaded Moves . | . . . Propulsion Burnouts . | . . . Robots Hopped . | . . . Potential Cave-ins . | . . . Cave-ins Triggered . | . . . Exploration Rate (%) 52 | 4 96 58 Regions Visited 2 Branch Regions 1 Pre-discovered Areas 1 | . . 1 Known Exits Taken . | . . . Unknown Exits Taken 2 | 1 1 . Scrap Searched 3 | . . 3 Spaces Dug . | . . . Terrain Destroyed 179 | . 50 129 Melee . | . . . Projectile . | . . . AOE 179 | . 50 129 Terrain Rammed . | . . . Walls Destroyed . | . . . Machines Disabled . | . . . Actions | -11 -10 -10 --------- Run | Yrd Mat Sub Total 2475 | 86 1342 1047 Wait 48 | . 37 11 Move 2203 | 71 1162 970 Hop . | . . . Pick Up 21 | 2 16 3 Fast Attach 22 | 6 13 3 Attach 14 | 1 4 9 Detach 3 | . 3 . Swap 12 | . 9 3 Drop 14 | . 14 . Fire 138 | 6 84 48 Melee . | . . . Ram . | . . . Kick . | . . . Crush . | . . . Escape Stasis . | . . . Rewire . | . . . Trap . | . . . Miscellaneous . | . . . Route ------- -11/Scrapyard -10/Materials (discovered 6 exits: [*Mat x3] / [*Min x2] / [*Sub]) -10/Subcaves (discovered 3 exits: [*Mat x2] / [*Rec]) History --------- Turn | Location | Event 21 | -11/Scrapyard | Discovered new exit (range 15) 96 | -11/Scrapyard | Entered Materials 240 | -10/Materials | Discovered new exit (range 7) 309 | -10/Materials | Discovered new exit (range 5) 316 | -10/Materials | Build established: Mutant 675 | -10/Materials | Discovered new exit (range 13) 813 | -10/Materials | Discovered new exit (range 8) 895 | -10/Materials | Discovered new exit (range 5) 1098 | -10/Materials | Build established: Scavenger-Mutant 1251 | -10/Materials | Discovered new exit (range 16) 1364 | -10/Materials | Entered Subcaves 1437 | -10/Subcaves | Learned location of 1 exit from Materials 1514 | -10/Subcaves | Shifting Twisted Machinery released Sub. Power Source 1528 | -10/Subcaves | Discovered new exit (range 9) 1529 | -10/Subcaves | Shifting Twisted Machinery released Hvy. Riot Gun 1698 | -10/Subcaves | Discovered new exit (range 12) 1842 | -10/Subcaves | Lost 3 parts (1p2w) 2015 | -10/Subcaves | A swath of the cavern ceiling suddenly collapsed 2113 | -10/Subcaves | Build established: Mutant 2131 | -10/Subcaves | Discovered new exit (range 11) 2146 | -10/Subcaves | Learned location of Zion (-6) 2146 | -10/Subcaves | Met a Zionite searching for "candidates" 2224 | -10/Subcaves | Core integrity fell below 50% 2258 | -10/Subcaves | Lost 4 parts (1n1u2w) 2334 | -10/Subcaves | Ambushed by Subdweller buried in earth 2335 | -10/Subcaves | Core integrity fell below 20% 2361 | -10/Subcaves | Destroyed by KM-MHH(R) with Subdweller Laser Last Messages --------------- 02246_ Acquired 4 matter. 02248_ Acquired 14 matter. 02249_ The unstable cave ceiling collapses. 02251_ Acquired 19 matter. 02254_ Acquired Sub. Monowheel. 02256_ System corrupted: Matter fused (-5). 02257_ Acquired Barrage Gun. 02265_ The unstable cave ceiling collapses. 02274_ Acquired 9 matter. 02294_ The unstable cave ceiling collapses. 02320_ System corrupted: Matter fused (-7). 02323_ PH-Z2Y(R): "ECOKILL!" 02334_ Sub. Power Source melted. 02334_ VC-XFQ(R) destroyed. [Achievement: Do Not Disturb] 02335_ KM-MHH(R): "THANKSYOU!" 02339_ EJ-Z1J(R) affixes Scrap Shield Fragment to Scrap Shield. 02340_ Wheel destroyed. 02342_ Grenade Launcher destroyed. Map ----- +----------------------------------------------------+ | ????????????????### ?????? ??????????????? | | ????????????????# # ###??? ???????????????? | | ??????????????### ?? #???????????????? | | ??????????????? ?# ##??????????????? | | ???????????????? &% ## ##?????????????? | | ???????????????? #?????????????? | | ????????????????? #??????????????? | | ?????????????????# #???? ??????????? | | ?????????????????# ?### ???????????? | | ????????????????## # #? " ? ????????? | | ????????????????" # #?? " !????????? | | ?????????????????# #?#&" " ??????????? | | ?????????????????## #"# & #???????????? | | ??????????????????# ##? # " ##????###???? | | ?????????????????## ##?# ## #? ## #???? | | ????????????????## ## ### ?? #???? | | ????????????????# # ## ## ##??? | | ???????????????## ## ## ###? | | ???????????????# ### ###### # # ## | | ???????????????# # ##????# | | ???????????????# #?????# | | ???????????????# R ##?????# | | ???????????????# #####?# | | ???????????????# # " ## ### ## ##? | | ???????????????# #""" ## !# # #? | | ???????????????## @ ##""" # ! #? | | ????????????????# ##### # ## | | ???????????????## #??### && | | ???????????????# ##?## ] # | | ???????????????# ###??# # # | | ???????????????# ###??### #### ## | | ???????????????##????## ### ## #### | | ?????????????????????#" ##### ##?## | | ?????????????????????#"""### ## #??? | | ?????????????????????# "#?#### # #??? | | ????????????????????# "????### ##??? | | ????????????????????# ??????## #??? | | ????????????????????## ???????# #??? | | ?????????????????????#####???????## ##??? | | ??????????????????????????????????######???? | | ???????????????????????????????????????????? | | ???????????????????????????????????????????? | | ???????????????????????????????????????????? | | ???????????????????????????????????????????? | | ???????????????????????????????????????????? | | ???????????????????????????????????????????? | | ???????????????????????????????????????????? | | ???????????????????????????????????????????? | | ???????????????????????????????????????????? | | ???????????????????????????????????????????? | +----------------------------------------------------+ Best States ------------- Heat Dissipation 25 Energy Generation 15 Energy Capacity 250 Matter Stores 350 Matter Capacity 350 Sight Range 16 Terrain Scan Range 14 Terrain Scan Density 10 Core Shielding 20 Evasion (%) 44 Item Schematics ----------------- None Robot Schematics ------------------ None Fabricated ------------ Nothing Repaired ---------- Nothing Studied --------- None Alien Tech Used ----------------- None Achievements -------------- Do Not Disturb Use The Force Challenges ------------ None Game ------ Seed CoreMultitargetingTether Manual? 0 Play Time 00:39:47 Cumulative 31.3 hours Start 2026.02.11 @ 21:41:34 End 2026.02.11 @ 22:29:35 Sessions 1 Manual Loads 0 Difficulty Rogue Special Mode None Game No. 32 Rogue 32 Adventurer 0 Explorer 0 Win Type - Total 0 Types 0/0/0/0/0/0/0/0/0/0 Lore% 16 Gallery% 14 Achievement% 14 Wizard Run 0 Options --------- Layout 1 ASCII 0 Keyboard 1 Movement Numpad Keybinds 0 Fullscreen 2 Font 24/Cog Map View 50x35 Zoom Use 0% Tactical HUD 1 Map Filters NONE Filters NONE Steam 1 RUN: 7c60f45a-b97f-4882-918e-cd5409f2adf3